fUST/lending_fUST_20240424
["ID","MTS","AMOUNT","RATE_DAILY","PERIOD"]
[323335087,1713903478061,2587.76784421,0.00012,2]
[323335088,1713903480666,300.0,0.00012,2]
[323335089,1713903480873,623.77275616,0.00012,2]
[323335091,1713903481602,300.0,0.00012,2]
[323335094,1713903482733,187.2839657,0.00012,2]
[323335095,1713903485831,3533.14627737,0.00012,2]
[323335096,1713903486580,733.40677553,0.00012,2]
[323335097,1713903488083,7866.94121737,0.00012,2]
[323335098,1713903489052,155.69761576,0.00012,2]
[323335099,1713903493615,59159.66057733,0.00012,2]
[323335100,1713903494238,2623.97456043,0.00012,2]
[323335101,1713903495293,1090.52068603,0.00012,2]
[323335102,1713903498047,2587.76784421,0.00012,2]
[323335103,1713903503836,3533.14627737,0.00012,2]
[323335104,1713903505632,59159.66057733,0.00012,2]
[323335106,1713903513291,1090.52068603,0.00012,2]
[323335107,1713903514125,942.41156544,0.00012,2]
[323335108,1713903518055,2587.76784421,0.00012,2]
[323335109,1713903518897,2604.93756577,0.00012,2]
[323335110,1713903524135,9224.54716634,0.00012,2]
[323335111,1713903526589,2998.6752285,0.00012,2]
[323335117,1713903558762,1509.879336,0.00011008,2]
[323335119,1713903595326,1247.3782967,0.00011091,2]
[323335139,1713903737509,226.0703256,0.00011889,2]
[323335140,1713903742479,226.07032542,0.0001189,2]
[323335142,1713903747471,226.07032542,0.00011892,2]
[323335143,1713903752495,226.07032542,0.00011893,2]
[323335144,1713903757523,226.07032542,0.00011894,2]
[323335145,1713903762515,226.07032542,0.00011895,2]
[323335146,1713903767507,226.07032542,0.00011897,2]
[323335147,1713903772478,226.07032542,0.00011898,2]
[323335148,1713903777491,226.07032542,0.00011899,2]
[323335150,1713903807928,595.75058237,0.00011899,2]
[323335151,1713903820688,154.82968734,0.00011899,2]
[323335152,1713903837619,521.52942585,0.00011899,2]
[323335153,1713903841919,157.76351589,0.00011899,2]
[323335154,1713903845906,12778.23622689,0.00010942,2]
[323335155,1713903845950,12121.76377311,0.00010942,2]
[323335158,1713903925338,6878.23622689,0.00011016,2]
[323335159,1713903925370,2404.48557931,0.00011016,2]
[323335160,1713903952647,180.68969019,0.00010942,2]
[323335161,1713903966594,180.68969019,0.00011016,2]
[323335162,1713903984586,231.5066089,0.00011016,2]
[323335175,1713904161174,-154.82968734,0.00011887,2]
[323335176,1713904161197,-3533.14627737,0.00011887,2]
[323335177,1713904161218,-1578.09578874,0.00011888,2]
[323335178,1713904161241,-300.0,0.00011892,2]
[323335179,1713904161263,-300.0,0.00011892,2]
[323335180,1713904161285,-448.56571186,0.00011893,2]
[323335181,1713904161306,-448.56571186,0.00011893,2]
[323335182,1713904161326,-448.56571186,0.00011893,2]
[323335183,1713904161350,-226.07032542,0.000119,2]
[323335184,1713904161372,-226.07032542,0.00011902,2]
[323335185,1713904161396,-226.07032542,0.00011903,2]
[323335186,1713904161420,-226.07032542,0.00011904,2]
[323335187,1713904161443,-226.07032542,0.00011905,2]
[323335188,1713904161465,-226.07032542,0.00011907,2]
[323335189,1713904161488,-226.07032542,0.00011908,2]
[323335190,1713904161508,-226.07032542,0.00011909,2]
[323335191,1713904161531,-226.07032542,0.0001191,2]
[323335192,1713904161553,-226.07032542,0.00011912,2]
[323335193,1713904161575,-226.07032542,0.00011913,2]
[323335194,1713904161596,-468.44380318,0.00011998,2]
[323335195,1713904161619,-26277.43094173,0.00011998,2]
[323335196,1713904163099,-21658.73586849,0.00011998,2]
[323335197,1713904164332,-24623.92358076,0.00011998,2]
[323335198,1713904164355,-1478.0587839,0.00011999,2]
[323335199,1713904164379,-237100.56690744,0.00011999,2]
[323335201,1713904182698,489.72,0.00023842,120]
[323335241,1713904232198,-1578.09578874,0.00011995,2]
[323335242,1713904232208,-1405.43580599,0.00011996,2]
[323335243,1713904232217,-51634.59713592,0.00011997,2]
[323335244,1713904232229,-287.25023212,0.00011997,2]
[323335282,1713904238456,-11389.7415725,0.00011997,2]
[323335284,1713904238468,-1193.36891311,0.00011997,2]
[323335286,1713904238480,-26991.16510222,0.00011997,2]
[323335292,1713904238521,-505.252998,0.00011997,2]
[323335295,1713904238533,-22869.14040772,0.00011997,2]
[323335297,1713904238545,-295114.40565543,0.00011997,2]
[323335299,1713904238554,-300.0,0.00011997,2]
[323335300,1713904238564,-300.0,0.00011997,2]
[323335301,1713904238574,-157.69832158,0.00011998,2]
[323335302,1713904238584,-3533.14627737,0.00011998,2]
[323335303,1713904238593,-72560.09039098,0.00011998,2]
[323335304,1713904238603,-692.70825887,0.00011999,2]
[323335305,1713904238613,-929.70770712,0.00012,2]
[323335306,1713904238622,-551.60185639,0.00012001,2]
[323335307,1713904238632,-155.53401986,0.00012001,2]
[323335308,1713904238641,-199.50213221,0.00012001,2]
[323335309,1713904238651,-166.41942752,0.00012001,2]
[323335310,1713904238660,-9931.02217839,0.00012003,2]
[323335311,1713904238669,-431.8825854,0.00012007,2]
[323335312,1713904238679,-188.5845131,0.00012008,2]
[323335313,1713904238688,-154.82968734,0.00012114,2]
[323335314,1713904238697,-232.71054593,0.00012114,2]
[323335315,1713904238707,-938.74911239,0.000129,2]
[323335316,1713904238716,-420.0,0.0001317,2]
[323335317,1713904238726,-420.0,0.00013196,2]
[323335318,1713904238735,-1747.8690124,0.00013699,2]
[323335319,1713904238744,-1552.716936,0.00013699,2]
[323335320,1713904238754,-927.73627561,0.00014,2]
[323335321,1713904238762,-587.0,0.00014457,2]
[323335323,1713904238771,-587.0,0.00014516,2]
[323335325,1713904238780,-628.221272,0.00015,2]
[323335326,1713904238791,-157.03688122,0.00015,2]
[323335328,1713904238800,-154.82968734,0.00015,2]
[323335331,1713904238809,-1675.82446385,0.00015,2]
[323335332,1713904238819,-2099.47208497,0.00015,2]
[323335334,1713904238829,-154.82968734,0.00015,2]
[323335336,1713904238838,-938.58206509,0.00015,2]
[323335339,1713904238848,-312.61134477,0.00015,2]
[323335340,1713904238857,-823.0,0.00015871,2]
[323335343,1713904238867,-823.0,0.00015967,2]
[323335344,1713904238876,-938.74911235,0.00016193,2]
[323335346,1713904238885,-272.57129579,0.000165,2]
[323335349,1713904238895,-407.0,0.00017423,2]
[323335350,1713904238904,-774.19455501,0.00017505,2]
[323335352,1713904238914,-1152.0,0.00017564,2]
[323335354,1713904238924,-3384.66457059,0.00018,2]
[323335357,1713904238935,-727.47725685,0.00018,2]
[323335358,1713904238945,-306.0,0.00018867,2]
[323335360,1713904238954,-242.4910051,0.00018897,2]
[323335363,1713904238964,-2962.17611975,0.00018897,2]
[323335365,1713904238973,-257.25838159,0.00018897,2]
[323335366,1713904238982,-1202.20163216,0.00018898,2]
[323335368,1713904238991,-4612.82556614,0.000189,2]
[323335370,1713904239001,-203.583665,0.00018904,2]
[323335372,1713904239010,-189.19295912,0.0001897,2]
[323335374,1713904239019,-309.65937468,0.00019,2]
[323335376,1713904239028,-637.9252794,0.00019,2]
[323335378,1713904239038,-145797.86941052,0.000191,2]
[323335380,1713904239047,-112007.6829484,0.00019177,2]
[323335382,1713904239056,-68486.72493984,0.00019178,2]
[323335384,1713904239065,-500.0,0.00019178,2]
[323335386,1713904239073,-500.0,0.00019178,2]
[323335388,1713904239082,-500.0,0.00019178,2]
[323335390,1713904239091,-500.0,0.00019178,2]
[323335392,1713904239101,-553.52659239,0.00019178,2]
[323335394,1713904239111,-500.0,0.00019178,2]
[323335396,1713904239119,-500.0,0.00019178,2]
[323335398,1713904239130,-500.0,0.00019178,2]
[323335400,1713904239139,-152.5171301,0.00019178,2]
[323335402,1713904239148,-500.0,0.00019178,2]
[323335404,1713904239157,-500.0,0.00019178,2]
[323335406,1713904239166,-519.95768087,0.00019178,2]
[323335408,1713904239175,-500.0,0.00019178,2]
[323335410,1713904239184,-500.0,0.00019178,2]
[323335412,1713904239194,-500.0,0.00019178,2]
[323335414,1713904239204,-500.0,0.00019178,2]
[323335416,1713904239213,-500.0,0.00019178,2]
[323335418,1713904239223,-889.38,0.00019178,2]
[323335420,1713904239232,-500.0,0.00019178,2]
[323335422,1713904239240,-500.0,0.00019178,2]
[323335424,1713904239249,-500.0,0.00019178,2]
[323335426,1713904239258,-500.0,0.00019178,2]
[323335428,1713904239267,-504.82378182,0.00019178,2]
[323335430,1713904239276,-500.0,0.00019178,2]
[323335432,1713904239285,-500.0,0.00019178,2]
[323335434,1713904239295,-500.0,0.00019178,2]
[323335436,1713904239304,-500.0,0.00019178,2]
[323335438,1713904239315,-500.0,0.00019178,2]
[323335440,1713904239324,-897.69,0.00019178,2]
[323335442,1713904239334,-636.97,0.00019178,2]
[323335444,1713904239346,-1150.37,0.00019178,2]
[323335446,1713904239356,-500.0,0.00019178,2]
[323335448,1713904239365,-500.0,0.00019178,2]
[323335450,1713904239374,-500.0,0.00019178,2]
[323335452,1713904239385,-500.0,0.00019178,2]
[323335454,1713904239395,-545.02829371,0.00019178,2]
[323335456,1713904239405,-500.0,0.00019178,2]
[323335459,1713904239416,-500.0,0.00019178,2]
[323335460,1713904239426,-500.0,0.00019178,2]
[323335463,1713904239436,-500.0,0.00019178,2]
[323335464,1713904239445,-500.0,0.00019178,2]
[323335467,1713904239455,-828.81,0.00019178,2]
[323335468,1713904239464,-504.73039003,0.00019178,2]
[323335470,1713904239474,-638.27,0.00019178,2]
[323335472,1713904239484,-500.0,0.00019178,2]
[323335474,1713904239493,-500.0,0.00019178,2]
[323335476,1713904239502,-500.0,0.00019178,2]
[323335478,1713904239511,-500.0,0.00019178,2]
[323335480,1713904239520,-500.0,0.00019178,2]
[323335482,1713904239529,-510.27205363,0.00019178,2]
[323335484,1713904239539,-500.0,0.00019178,2]
[323335486,1713904239548,-622.40912254,0.00019178,2]
[323335488,1713904239558,-500.0,0.00019178,2]
[323335490,1713904239567,-500.0,0.00019178,2]
[323335492,1713904239578,-500.0,0.00019178,2]
[323335494,1713904239587,-720.39,0.00019178,2]
[323335496,1713904239596,-500.0,0.00019178,2]
[323335499,1713904239606,-500.0,0.00019178,2]
[323335500,1713904239615,-500.0,0.00019178,2]
[323335502,1713904239624,-500.0,0.00019178,2]
[323335505,1713904239633,-500.0,0.00019178,2]
[323335506,1713904239642,-1908.15,0.00019178,2]
[323335509,1713904239651,-500.0,0.00019178,2]
[323335511,1713904239661,-500.0,0.00019178,2]
[323335513,1713904239670,-500.0,0.00019178,2]
[323335515,1713904239679,-500.0,0.00019178,2]
[323335517,1713904239689,-606.14,0.00019178,2]
[323335518,1713904239698,-500.0,0.00019178,2]
[323335520,1713904239708,-500.0,0.00019178,2]
[323335522,1713904239717,-500.0,0.00019178,2]
[323335524,1713904239726,-1456.0,0.00019178,2]
[323335527,1713904239736,-500.0,0.00019178,2]
[323335529,1713904239745,-781.46,0.00019178,2]
[323335531,1713904239754,-500.0,0.00019178,2]
[323335532,1713904239764,-500.0,0.00019178,2]
[323335535,1713904239773,-1094.8,0.00019178,2]
[323335537,1713904239782,-500.0,0.00019178,2]
[323335539,1713904239792,-500.0,0.00019178,2]
[323335541,1713904239801,-1360.92,0.00019178,2]
[323335543,1713904239810,-500.0,0.00019178,2]
[323335546,1713904239820,-500.0,0.00019178,2]
[323335549,1713904239830,-500.0,0.00019178,2]
[323335552,1713904239839,-195.08847318,0.00019178,2]
[323335553,1713904239848,-1056.31,0.00019178,2]
[323335556,1713904239857,-500.0,0.00019178,2]
[323335558,1713904239866,-500.0,0.00019178,2]
[323335560,1713904239875,-275.39330332,0.00019178,2]
[323335562,1713904239884,-501.09993963,0.00019178,2]
[323335564,1713904239893,-522.25,0.00019178,2]
[323335566,1713904239902,-500.0,0.00019178,2]
[323335567,1713904239911,-500.0,0.00019178,2]
[323335569,1713904239920,-844.75,0.00019178,2]
[323335571,1713904239929,-500.0,0.00019178,2]
[323335573,1713904239938,-500.0,0.00019178,2]
[323335575,1713904239948,-790.99,0.00019178,2]
[323335577,1713904239957,-500.0,0.00019178,2]
[323335579,1713904239966,-500.0,0.00019178,2]
[323335582,1713904239975,-500.0,0.00019178,2]
[323335583,1713904239984,-3051.52,0.00019178,2]
[323335585,1713904239993,-500.0,0.00019178,2]
[323335587,1713904240003,-808.9,0.00019178,2]
[323335589,1713904240012,-500.0,0.00019178,2]
[323335591,1713904240022,-574.46,0.00019178,2]
[323335593,1713904240032,-901.91,0.00019178,2]
[323335595,1713904240041,-500.0,0.00019178,2]
[323335597,1713904240051,-500.0,0.00019178,2]
[323335599,1713904240060,-500.0,0.00019178,2]
[323335601,1713904240069,-630.27,0.00019178,2]
[323335603,1713904240079,-180.27133171,0.00019178,2]
[323335605,1713904240089,-500.0,0.00019178,2]
[323335607,1713904240098,-1032.39,0.00019178,2]
[323335609,1713904240107,-612.47,0.00019178,2]
[323335612,1713904240116,-500.0,0.00019178,2]
[323335614,1713904240126,-500.0,0.00019178,2]
[323335616,1713904240135,-500.0,0.00019178,2]
[323335618,1713904240145,-500.0,0.00019178,2]
[323335620,1713904240154,-1494.24,0.00019178,2]
[323335622,1713904240163,-500.0,0.00019178,2]
[323335624,1713904240173,-553.42,0.00019178,2]
[323335626,1713904240182,-917.28,0.00019178,2]
[323335627,1713904240191,-500.0,0.00019178,2]
[323335630,1713904240201,-500.0,0.00019178,2]
[323335631,1713904240210,-500.0,0.00019178,2]
[323335633,1713904240219,-500.0,0.00019178,2]
[323335635,1713904240228,-942.81,0.00019178,2]
[323335637,1713904240237,-500.0,0.00019178,2]
[323335639,1713904240247,-500.0,0.00019178,2]
[323335641,1713904240256,-500.0,0.00019178,2]
[323335643,1713904240266,-500.0,0.00019178,2]
[323335645,1713904240275,-856.27,0.00019178,2]
[323335647,1713904240285,-1530.97,0.00019178,2]
[323335650,1713904240296,-500.0,0.00019178,2]
[323335652,1713904240305,-500.0,0.00019178,2]
[323335654,1713904240314,-500.0,0.00019178,2]
[323335656,1713904240323,-500.0,0.00019178,2]
[323335657,1713904240333,-500.0,0.00019178,2]
[323335660,1713904240343,-722.67,0.00019178,2]
[323335661,1713904240354,-507.42,0.00019178,2]
[323335663,1713904240363,-849.75,0.00019178,2]
[323335666,1713904240372,-291.31141702,0.00019178,2]
[323335667,1713904240382,-2244.97,0.00019178,2]
[323335669,1713904240391,-500.0,0.00019178,2]
[323335671,1713904240400,-500.0,0.00019178,2]
[323335673,1713904240410,-500.0,0.00019178,2]
[323335675,1713904240419,-500.0,0.00019178,2]
[323335677,1713904240429,-1348.29,0.00019178,2]
[323335679,1713904240439,-500.0,0.00019178,2]
[323335682,1713904240448,-500.0,0.00019178,2]
[323335683,1713904240457,-526.99,0.00019178,2]
[323335685,1713904240466,-1468.32,0.00019178,2]
[323335687,1713904240475,-621.39,0.00019178,2]
[323335689,1713904240484,-500.0,0.00019178,2]
[323335691,1713904240493,-1653.86,0.00019178,2]
[323335693,1713904240501,-500.0,0.00019178,2]
[323335695,1713904240510,-1058.63,0.00019178,2]
[323335698,1713904240520,-304.14815888,0.00019178,2]
[323335700,1713904240529,-643.86,0.00019178,2]
[323335702,1713904240539,-500.0,0.00019178,2]
[323335704,1713904240548,-434.38343928,0.00019178,2]
[323335706,1713904240557,-500.0,0.00019178,2]
[323335707,1713904240566,-500.0,0.00019178,2]
[323335709,1713904240575,-500.0,0.00019178,2]
[323335712,1713904240585,-1688.62,0.00019178,2]
[323335714,1713904240594,-527.94,0.00019178,2]
[323335716,1713904240603,-500.0,0.00019178,2]
[323335718,1713904240612,-1184.5,0.00019178,2]
[323335720,1713904240621,-500.0,0.00019178,2]
[323335722,1713904240630,-500.0,0.00019178,2]
[323335723,1713904240639,-500.0,0.00019178,2]
[323335725,1713904240648,-500.0,0.00019178,2]
[323335727,1713904240657,-500.0,0.00019178,2]
[323335729,1713904240666,-762.55,0.00019178,2]
[323335731,1713904240675,-500.0,0.00019178,2]
[323335733,1713904240684,-500.93018196,0.00019178,2]
[323335735,1713904240693,-525.8,0.00019178,2]
[323335737,1713904240702,-606.67,0.00019178,2]
[323335739,1713904240712,-508.01,0.00019178,2]
[323335741,1713904240721,-500.0,0.00019178,2]
[323335743,1713904240730,-500.0,0.00019178,2]
[323335745,1713904240739,-1346.94,0.00019178,2]
[323335747,1713904240748,-500.0,0.00019178,2]
[323335750,1713904240757,-662.26,0.00019178,2]
[323335751,1713904240767,-500.0,0.00019178,2]
[323335753,1713904240776,-518.61205416,0.00019178,2]
[323335755,1713904240785,-900.13,0.00019178,2]
[323335757,1713904240796,-500.0,0.00019178,2]
[323335759,1713904240805,-374.95520924,0.00019178,2]
[323335761,1713904240814,-500.0,0.00019178,2]
[323335763,1713904240823,-500.0,0.00019178,2]
[323335765,1713904240832,-500.0,0.00019178,2]
[323335767,1713904240842,-500.0,0.00019178,2]
[323335769,1713904240851,-1126.2,0.00019178,2]
[323335771,1713904240860,-581.8,0.00019178,2]
[323335773,1713904240869,-500.0,0.00019178,2]
[323335776,1713904240878,-514.98,0.00019178,2]
[323335778,1713904240888,-2075.8,0.00019178,2]
[323335780,1713904240897,-500.0,0.00019178,2]
[323335781,1713904240906,-999.25,0.00019178,2]
[323335784,1713904240915,-500.0,0.00019178,2]
[323335786,1713904240924,-590.38,0.00019178,2]
[323335788,1713904240933,-500.0,0.00019178,2]
[323335790,1713904240943,-500.0,0.00019178,2]
[323335792,1713904240952,-627.45,0.00019178,2]
[323335794,1713904240961,-1826.27,0.00019178,2]
[323335796,1713904240970,-3360.44,0.00019178,2]
[323335798,1713904240979,-500.0,0.00019178,2]
[323335799,1713904240989,-500.0,0.00019178,2]
[323335801,1713904240998,-1107.39,0.00019178,2]
[323335803,1713904241009,-500.0,0.00019178,2]
[323335805,1713904241017,-500.0,0.00019178,2]
[323335807,1713904241026,-500.0,0.00019178,2]
[323335810,1713904241036,-500.0,0.00019178,2]
[323335812,1713904241047,-500.0,0.00019178,2]
[323335813,1713904241056,-1019.65,0.00019178,2]
[323335816,1713904241066,-500.0,0.00019178,2]
[323335818,1713904241075,-361.08025354,0.00019178,2]
[323335819,1713904241084,-272.20581021,0.00019178,2]
[323335836,1713904241219,-500.0,0.00019178,2]
[323335838,1713904241229,-500.0,0.00019178,2]
[323335840,1713904241239,-500.0,0.00019178,2]
[323335842,1713904241248,-502.74587075,0.00019178,2]
[323335844,1713904241257,-1245.05,0.00019178,2]
[323335846,1713904241266,-6840.59,0.00019178,2]
[323335848,1713904241274,-500.0,0.00019178,2]
[323335850,1713904241283,-500.0,0.00019178,2]
[323335852,1713904241292,-500.0,0.00019178,2]
[323335854,1713904241301,-500.0,0.00019178,2]
[323335856,1713904241310,-2959.17,0.00019178,2]
[323335858,1713904241319,-500.0,0.00019178,2]
[323335859,1713904241327,-501.15,0.00019178,2]
[323335861,1713904241338,-4008.73,0.00019178,2]
[323335863,1713904241352,-500.0,0.00019178,2]
[323335865,1713904241361,-500.0,0.00019178,2]
[323335867,1713904241370,-500.0,0.00019178,2]
[323335869,1713904241381,-3664.35,0.00019178,2]
[323335871,1713904241390,-500.0,0.00019178,2]
[323335872,1713904241399,-500.0,0.00019178,2]
[323335874,1713904241408,-500.0,0.00019178,2]
[323335876,1713904241418,-500.0,0.00019178,2]
[323335878,1713904241429,-4795.23,0.00019178,2]
[323335880,1713904241439,-500.0,0.00019178,2]
[323335882,1713904241447,-500.0,0.00019178,2]
[323335884,1713904241457,-500.0,0.00019178,2]
[323335886,1713904241467,-500.0,0.00019178,2]
[323335888,1713904241475,-500.0,0.00019178,2]
[323335889,1713904241485,-500.0,0.00019178,2]
[323335891,1713904241494,-500.0,0.00019178,2]
[323335893,1713904241503,-500.0,0.00019178,2]
[323335895,1713904241512,-525.54,0.00019178,2]
[323335897,1713904241520,-508.80885748,0.00019178,2]
[323335899,1713904241529,-559.48,0.00019178,2]
[323335900,1713904241539,-549.94,0.00019178,2]
[323335902,1713904241548,-518.33017643,0.00019178,2]
[323335904,1713904241557,-500.0,0.00019178,2]
[323335906,1713904241567,-500.0,0.00019178,2]
[323335908,1713904241576,-567.37810752,0.00019178,2]
[323335910,1713904241585,-500.0,0.00019178,2]
[323335912,1713904241594,-1339.94,0.00019178,2]
[323335914,1713904241603,-500.0,0.00019178,2]
[323335915,1713904241612,-1509.18,0.00019178,2]
[323335917,1713904241621,-500.0,0.00019178,2]
[323335919,1713904241630,-500.0,0.00019178,2]
[323335921,1713904241639,-2367.67,0.00019178,2]
[323335923,1713904241648,-500.0,0.00019178,2]
[323335925,1713904241657,-511.34,0.00019178,2]
[323335927,1713904241666,-500.0,0.00019178,2]
[323335928,1713904241675,-863.11,0.00019178,2]
[323335930,1713904241685,-842.58,0.00019178,2]
[323335932,1713904241694,-500.0,0.00019178,2]
[323335934,1713904241705,-203.06637633,0.00019178,2]
[323335936,1713904241714,-500.0,0.00019178,2]
[323335938,1713904241723,-500.0,0.00019178,2]
[323335940,1713904241732,-481.05127179,0.00019178,2]
[323335942,1713904241741,-500.0,0.00019178,2]
[323335944,1713904241750,-500.0,0.00019178,2]
[323335945,1713904241759,-500.0,0.00019178,2]
[323335947,1713904241769,-313.2061957,0.00019178,2]
[323335949,1713904241778,-504.64067529,0.00019178,2]
[323335951,1713904241786,-541.68,0.00019178,2]
[323335953,1713904241797,-500.0,0.00019178,2]
[323335955,1713904241806,-500.0,0.00019178,2]
[323335957,1713904241816,-500.0,0.00019178,2]
[323335959,1713904241825,-500.0,0.00019178,2]
[323335961,1713904241834,-500.0,0.00019178,2]
[323335962,1713904241844,-2228.18,0.00019178,2]
[323335964,1713904241853,-500.0,0.00019178,2]
[323335966,1713904241862,-551.3830427,0.00019178,2]
[323335968,1713904241871,-500.0,0.00019178,2]
[323335970,1713904241880,-500.0,0.00019178,2]
[323335972,1713904241889,-602.76,0.00019178,2]
[323335973,1713904241897,-500.0,0.00019178,2]
[323335975,1713904241906,-500.0,0.00019178,2]
[323335977,1713904241915,-500.0,0.00019178,2]
[323335979,1713904241924,-500.0,0.00019178,2]
[323335981,1713904241933,-500.0,0.00019178,2]
[323335983,1713904241942,-635.60968491,0.00019178,2]
[323335985,1713904241951,-500.0,0.00019178,2]
[323335987,1713904241961,-500.0,0.00019178,2]
[323335988,1713904241970,-500.0,0.00019178,2]
[323335990,1713904241980,-910.17,0.00019178,2]
[323335992,1713904241989,-420.36145679,0.00019178,2]
[323335994,1713904241998,-21514.77,0.00019178,2]
[323335996,1713904242007,-154.81422293,0.00019178,2]
[323335998,1713904242017,-500.0,0.00019178,2]
[323336000,1713904242025,-500.0,0.00019178,2]
[323336002,1713904242035,-1895.54,0.00019178,2]
[323336003,1713904242048,-500.0,0.00019178,2]
[323336005,1713904242057,-500.0,0.00019178,2]
[323336007,1713904242066,-1762.98,0.00019178,2]
[323336009,1713904242076,-500.0,0.00019178,2]
[323336011,1713904242085,-6245.12,0.00019178,2]
[323336012,1713904242094,-500.0,0.00019178,2]
[323336014,1713904242104,-9897.47,0.00019178,2]
[323336016,1713904242114,-500.0,0.00019178,2]
[323336018,1713904242123,-267.28861337,0.00019178,2]
[323336020,1713904242132,-500.0,0.00019178,2]
[323336022,1713904242141,-6088.79,0.00019178,2]
[323336024,1713904242151,-500.0,0.00019178,2]
[323336026,1713904242160,-1749.22,0.00019178,2]
[323336027,1713904242170,-1570.41,0.00019178,2]
[323336029,1713904242179,-2065.0,0.00019178,2]
[323336031,1713904242188,-500.0,0.00019178,2]
[323336033,1713904242197,-1017.48,0.00019178,2]
[323336035,1713904242206,-500.0,0.00019178,2]
[323336037,1713904242215,-9622.55,0.00019178,2]
[323336039,1713904242223,-500.0,0.00019178,2]
[323336041,1713904242233,-759.63,0.00019178,2]
[323336042,1713904242242,-150.7314115,0.00019178,2]
[323336044,1713904242251,-9600.98,0.00019178,2]
[323336046,1713904242259,-500.0,0.00019178,2]
[323336048,1713904242268,-500.0,0.00019178,2]
[323336050,1713904242278,-505.28965278,0.00019178,2]
[323336052,1713904242286,-500.0,0.00019178,2]
[323336054,1713904242299,-500.0,0.00019178,2]
[323336055,1713904242307,-500.0,0.00019178,2]
[323336057,1713904242316,-6987.82,0.00019178,2]
[323336059,1713904242325,-527.75,0.00019178,2]
[323336061,1713904242334,-500.0,0.00019178,2]
[323336063,1713904242343,-500.0,0.00019178,2]
[323336065,1713904242355,-500.0,0.00019178,2]
[323336067,1713904242364,-500.0,0.00019178,2]
[323336069,1713904242373,-507.17171376,0.00019178,2]
[323336071,1713904242382,-500.0,0.00019178,2]
[323336073,1713904242391,-1499.83486664,0.00019178,2]
[323336074,1713904242400,-501.68120795,0.00019178,2]
[323336076,1713904242409,-1959.36,0.00019178,2]
[323336078,1713904242418,-500.0,0.00019178,2]
[323336080,1713904242429,-500.0,0.00019178,2]
[323336082,1713904242438,-500.0,0.00019178,2]
[323336084,1713904242447,-500.0,0.00019178,2]
[323336086,1713904242456,-500.0,0.00019178,2]
[323336088,1713904242465,-500.0,0.00019178,2]
[323336090,1713904242474,-500.0,0.00019178,2]
[323336091,1713904242483,-500.0,0.00019178,2]
[323336093,1713904242492,-500.0,0.00019178,2]
[323336095,1713904242501,-10065.15,0.00019178,2]
[323336097,1713904242510,-500.0,0.00019178,2]
[323336099,1713904242519,-5000.0,0.000193,2]
[323336101,1713904242528,-1613.0,0.00019321,2]
[323336103,1713904242537,-2851.72799664,0.00019447,2]
[323336105,1713904242549,-408.14538356,0.0001945,2]
[323336106,1713904242558,-309.65937468,0.0001945,2]
[323336108,1713904242567,-361.87683553,0.0001945,2]
[323336110,1713904242576,-212.23968009,0.0001945,2]
[323336112,1713904242585,-161.44973526,0.0001945,2]
[323336114,1713904242594,-190.43221491,0.00019451,2]
[323336116,1713904242605,-500.0,0.00019452,2]